Cogmind - Beta 17 @@@ ROGUE MODE // 2026.06.24 @ 20:39:55 Player: Jimothy Jimone Result: Destroyed by Y-45 Defender with Beam Rifle Performance ------------- Evolutions (1) 500 Regions Visited (2) 400 Robots Destroyed (9) 45 Value Destroyed (260) 260 Prototype IDs (0) 0 Alien Tech Used (0) 0 Bonus (0) 0 TOTAL SCORE: 1205 Bonus ------- None Cogmind --------- Core Integrity 0/400 Matter 253/300 Energy 125/125 System Corruption 1% Temperature Cool (9) Movement Core (50) Location -9/Materials Parts ------- > --- POWER (1) -------- Light Ion Engine > --- PROPULSION (4) --- (None) > --- UTILITY (2) ------ (None) > --- WEAPON (2) ------- (None) > --- INVENTORY (5) ---- (None) Peak State ------------ > --- POWER ------------ Ion Engine > --- PROPULSION ------- Wheel Compact Wheel > --- UTILITY ---------- Small Storage Unit > --- WEAPON ----------- EMP Blaster EMP Blaster > --- INVENTORY -------- Light Ion Engine Assault Rifle [Rating: 8] Favorites ----------- Power Light Nuclear Core Engine Ion Engine Power Core Light Nuclear Core Propulsion Aluminum Leg Leg Aluminum Leg Wheel Wheel Utility Small Storage Unit Device Terrain Scanner Storage Small Storage Unit Weapon Assault Rifle Energy Gun Spread Laser Ballistic Gun Assault Rifle Launcher EMP Blaster Build | -11 -10 -9 ------- Run | Yrd Mat Mat Slots Evolved 2 | . . 2 Power . | . . . Propulsion 2 | . . 2 Utility . | . . . Weapon . | . . . Parts Attached 14 | 5 6 3 Power 3 | 1 1 1 Engine 2 | 1 . 1 Core 1 | . 1 . Reactor . | . . . Propulsion 4 | 2 1 1 Treads . | . . . Leg 2 | . 1 1 Wheel 2 | 2 . . Hover . | . . . Flight . | . . . Utility 2 | 1 . 1 Device 1 | . . 1 Storage 1 | 1 . . Processor . | . . . Hackware . | . . . Protection . | . . . Artifact . | . . . Weapon 5 | 1 4 . Energy Gun 2 | . 2 . Energy Cannon . | . . . Ballistic Gun 1 | 1 . . Ballistic Cannon . | . . . Launcher 2 | . 2 . Special Weapon . | . . . Impact Weapon . | . . . Slashing Weapon . | . . . Piercing Weapon . | . . . Special Melee Weapon . | . . . Unidentified Prototypes . | . . . Parts Lost 10 | . 3 7 Power 2 | . 1 1 Propulsion 4 | . 2 2 Utility 1 | . . 1 Weapon 3 | . . 3 Highest Loss Streak 7 | . 2 7 To Critical Strikes . | . . . Average Backups 3 | . 3 3 Power . | . 1 . Propulsion . | . . . Utility . | . . . Weapon 2 | . 2 2 Tool/Special . | . . . Unused Backups . | . . . Power . | . . . Propulsion . | . . . Utility . | . . . Weapon . | . . . Tool/Special . | . . . Average Slot Usage (%) 53 | . 60 40 Engine 2 | . 3 . Core 6 | . 6 8 Leg 9 | . 6 16 Wheel 7 | . 11 . Device 2 | . . 6 Storage 9 | . 14 . Energy Gun 5 | . 8 . Ballistic Gun 8 | . 9 7 Launcher 2 | . 3 . Peak Build Rating 8 | 5 8 7 Average Rating 5 | 3 5 5 On Entrance 3 | . 5 6 Avg Prop Armor Cover (%) . | . . . Naked Turns 1 | . . 1 Heaviest Build 18 | 12 18 9 Greatest Support 26 | 26 26 20 Greatest Overweight (x) 4 | . 4 2 Average Overweight (x) . | . . . Largest Inventory Capacity 8 | 8 8 5 Average Capacity 6 | 7 8 5 Most Carried 5 | 1 5 5 Average Carried 3 | . 3 3 Final Capacity 8 | 8 8 5 Final Carried 4 | 1 4 . Class Distribution -------------------- 100% | Mutant Dominant Class ---------------- Mutant | -10/Materials Mutant | -9/Materials Resources | -11 -10 -9 ----------- Run | Yrd Mat Mat Matter Collected 336 | 190 146 . Remotely . | . . . Salvage Created 263 | . 263 . Parts 22 | . 22 . Haulers Intercepted . | . . . Recyclers Shooed . | . . . Parts Field Recycled . | . . . Retrieved Matter . | . . . Parts Self-Destructed . | . . . Prevented . | . . . Parts Restored . | . . . Kills | -11 -10 -9 ------- Run | Yrd Mat Mat Combat Hostiles Destroyed 9 | . 9 . Guns 4 | . 4 . AOE 5 | . 5 . Classes Destroyed 2 | . 2 . Swarmer 3 | . 3 . Grunt 6 | . 6 . Best Kill Streak 5 | . 5 . Combat Bots Only 5 | . 5 . Max Kills in Single Turn 3 | . 3 . Gunslinging . | . . . Exploded 3 | . 3 . Melee . | . . . Uniques/NPCs Destroyed . | . . . Combat | -11 -10 -9 -------- Run | Yrd Mat Mat Hostile Shots Fired 168 | . 47 121 Missed 48 | . 11 37 Hits 120 | . 36 84 Projectile 120 | . 36 84 Critical Strikes 3 | . . 3 Damage Taken 1366 | . 540 826 Core 570 | . 165 405 Absorbed by Shields . | . . . Core Remaining (%) 67 | 100 34 . Volleys Fired 30 | . 26 4 Largest 2 | . 2 1 Hottest 130 | . 130 20 Shots Fired 43 | . 39 4 Gun 36 | . 32 4 Cannon . | . . . Launcher 7 | . 7 . Special . | . . . Kinetic 19 | . 15 4 Thermal 17 | . 17 . Explosive . | . . . Electromagnetic 7 | . 7 . Robot Hit Streak 6 | . 6 1 Robot Miss Streak 6 | . 6 4 Penetration Max . | . . . Secondary Targets 1 | . 1 . Max Gunslinging Chain 1 | . 1 . Shots Hit Robots 17 | . 16 1 Core Hits 30 | . 29 1 Critical Kills . | . . . Critical Parts Destroyed . | . . . Critical Strikes . | . . . Melee Attacks . | . . . Impact . | . . . Slashing . | . . . Piercing . | . . . Sneak Attacks . | . . . Combat Hostiles . | . . . Follow-up Attacks . | . . . Damage Inflicted 414 | . 364 50 Guns 192 | . 181 11 Cannons . | . . . Explosions 183 | . 183 . Melee . | . . . Ramming 39 | . . 39 Kinetic 11 | . . 11 Thermal 181 | . 181 . Explosive . | . . . Electromagnetic 183 | . 183 . Impact . | . . . Slashing . | . . . Piercing . | . . . Highest Corruption 3 | . 3 1 Average Corruption 2 | . 2 1 Corruption Purged . | . . . Corruption Blocked . | . . . Effects 4 | . 4 . Matter Fused 2 | . 2 . Parts Rejected 1 | . 1 . Data Loss (minor) 1 | . 1 . Overload Shots . | . . . Overflow Damage . | . . . Projectiles . | . . . Explosions . | . . . Melee . | . . . Knockbacks . | . . . Impact . | . . . Kinetic . | . . . Secondary . | . . . Self-Inflicted Damage 85 | . 76 9 Shots 5 | . 5 . Rammed 8 | . . 8 Targets Rammed 17 | . . 17 Kicked 9 | . . 9 Crushed . | . . . Highest Temperature 210 | . 210 10 Average Temperature 63 | . 64 10 Received Heat Transfer 339 | . 222 117 Siege Activations . | . . . Martial Activations . | . . . Shielding Activations . | . . . Robots Disrupted . | . . . Combat Hostiles . | . . . Robots Corrupted . | . . . Combat Hostiles . | . . . Parts Fried 2 | . 2 . Impact Corruptions . | . . . Robots Melted . | . . . Combat Hostiles . | . . . Parts Melted . | . . . Heat Transferred 225 | . 225 . Parts Sabotaged . | . . . Parts Stolen . | . . . Parts Stripped . | . . . Power Chain Reactions 2 | . 2 . Alert | -11 -10 -9 ------- Run | Yrd Mat Mat Maximum Alert Level . | . . . Low Security (%) 100 | 100 100 100 Level 1 . | . . . Level 2 . | . . . Level 3 . | . . . Level 4 . | . . . Level 5 . | . . . High Security . | . . . Max Security . | . . . Peak Influence 133 | . 133 . Initial . | . . . Average 46 | . 77 . Influence Increases 213 | . 213 . Destroy 0b10 Robot/C 180 | . 180 . Destroy Leader 30 | . 30 . Destroy Structure 3 | . 3 . Influence Decreases 213 | . 213 . Time Decay 110 | . 110 . Lost Part 30 | . 30 . Purge Threat 73 | . 73 . Squads Dispatched . | . . . Investigation . | . . . Extermination . | . . . Reinforcement . | . . . Assault . | . . . Garrison . | . . . Intercept . | . . . Searches Triggered . | . . . Construction Impeded . | . . . Haulers Reinforced . | . . . Active Scanning Responses . | . . . Cargo Convoy Interrupts . | . . . Stealth | -11 -10 -9 --------- Run | Yrd Mat Mat Distress Signals 3 | . 1 2 Communications Jammed . | . . . Distress Signals . | . . . Times Spotted 27 | . 12 15 Peak Tracking Total 12 | . 5 12 Tactical Retreats . | . . . Traps | -11 -10 -9 ------- Run | Yrd Mat Mat Traps Triggered 2 | . 2 . Indirectly . | . . . Trap Hack Attempts . | . . . Triggered . | . . . Disarmed . | . . . Reprogrammed . | . . . Reused . | . . . Traps Extracted . | . . . Installed . | . . . Triggered . | . . . Machines | -11 -10 -9 ---------- Run | Yrd Mat Mat Machines Disabled . | . . . Max in Single Turn . | . . . Machines Repaired . | . . . Machines Dismantled . | . . . Machines Sabotaged . | . . . Overloaded Fab Kills . | . . . Hacking | -11 -10 -9 --------- Run | Yrd Mat Mat Machines Accessed 1 | . 1 . Terminals 1 | . 1 . Fabricators . | . . . Repair Stations . | . . . Recycling Units . | . . . Scanalyzers . | . . . Garrison Access . | . . . Total Hacks 1 | . 1 . Successful 1 | . 1 . Failed . | . . . Catastrophic . | . . . Database Lockouts . | . . . Manual . | . . . Terminals 1 | . 1 . Fabricators . | . . . Repair Stations . | . . . Recycling Units . | . . . Scanalyzers . | . . . Garrison Access . | . . . Terminal Hacks 1 | . 1 . Unreport Threat 1 | . 1 . Fabricator Hacks . | . . . Repair Station Hacks . | . . . Recycling Unit Hacks . | . . . Scanalyzer . | . . . Garrison Access Hacks . | . . . Unauthorized Hacks . | . . . Terminals . | . . . Fabricators . | . . . Repair Stations . | . . . Recycling Units . | . . . Scanalyzers . | . . . Garrison Access . | . . . Data Cores Recovered . | . . . Used . | . . . Hacking Detections 1 | . 1 . Full Trace Events . | . . . Feedback Events . | . . . Feedback Blocked . | . . . Robot Schematics Acquired . | . . . Robots Built . | . . . Authchips . | . . . Time . | . . . Total Robot Build Rating . | . . . Part Schematics Acquired . | . . . Parts Built . | . . . Authchips . | . . . Time . | . . . Total Part Build Rating . | . . . Part Studies Acquired . | . . . Parts Repaired . | . . . Time . | . . . Parts Recycled . | . . . Recycled Matter . | . . . Retrieved Matter . | . . . Retrieved Components . | . . . Parts Scanalyzed . | . . . Part Schematics Acquired . | . . . Parts Damaged . | . . . Bothacking | -11 -10 -9 ------------ Run | Yrd Mat Mat Used RIF Installer . | . . . Robots Hacked . | . . . Non-combat . | . . . Combat . | . . . Robot Hacks Applied . | . . . Relay Couplers Released . | . . . Fabnet Peak Effective % . | . . . Robots Rewired . | . . . Allies Hacked . | . . . Hacks Repelled . | . . . Allies | -11 -10 -9 -------- Run | Yrd Mat Mat Total Allies . | . . . Largest Group . | . . . Highest-Rated Group . | . . . Highest-Rated Ally . | . . . Total Orders . | . . . Ally Attacks . | . . . Total Damage . | . . . Kills . | . . . Allies Corrupted . | . . . Allies Melted . | . . . Intel | -11 -10 -9 ------- Run | Yrd Mat Mat Active Infowar (turns) 85 | . . 85 Terrain 85 | . . 85 Robot Analysis Total . | . . . Derelict Logs Recovered . | . . . Drone Launches . | . . . Drone Recoveries . | . . . Exploration | -11 -10 -9 ------------- Run | Yrd Mat Mat Turns Passed 454 | 35 273 146 Spaces Moved 289 | 33 148 108 Core 46 | 7 10 29 Treads . | . . . Legs 129 | . 50 79 Wheels 114 | 26 88 . Hover . | . . . Flight . | . . . Fastest Speed 50 | 50 90 50 Average Speed 115 | 81 132 103 Slowest Speed 250 | 100 250 150 Overloaded Moves . | . . . Propulsion Burnouts . | . . . Robots Hopped . | . . . Potential Cave-ins . | . . . Cave-ins Triggered . | . . . Exploration Rate (%) 17 | 3 30 18 Regions Visited 2 Branch Regions . Pre-discovered Areas . | . . . Known Exits Taken . | . . . Unknown Exits Taken 2 | 1 1 . Scrap Searched . | . . . Spaces Dug . | . . . Terrain Destroyed 3 | . 3 . Melee . | . . . Projectile . | . . . AOE 3 | . 3 . Terrain Rammed . | . . . Walls Destroyed . | . . . Machines Disabled . | . . . Actions | -11 -10 -9 --------- Run | Yrd Mat Mat Total 361 | 38 186 137 Wait . | . . . Move 287 | 32 147 108 Hop . | . . . Pick Up 1 | 1 . . Fast Attach 13 | 5 6 2 Attach 5 | . 2 3 Detach 6 | . 5 1 Swap . | . . . Drop 2 | . . 2 Fire 30 | . 26 4 Melee . | . . . Ram 8 | . . 8 Kick 9 | . . 9 Crush . | . . . Escape Stasis . | . . . Rewire . | . . . Trap . | . . . Miscellaneous . | . . . Route ------- -11/Scrapyard -10/Materials -9/Materials History --------- Turn | Location | Event 3 | -11/Scrapyard | Discovered new exit (range 16) 36 | -11/Scrapyard | Entered Materials 166 | -10/Materials | Core integrity fell below 50% 301 | -10/Materials | Discovered new exit (range 5) 302 | -10/Materials | Build established: Mutant 309 | -10/Materials | Entered another Materials area 309 | -9/Materials | Evolved 2 slots: Propulsion x2 446 | -9/Materials | Core integrity fell below 50% 454 | -9/Materials | Core integrity fell below 20% 455 | -9/Materials | Destroyed by Y-45 Defender with Beam Rifle Last Messages --------------- Kicked S-10 Pest out of the way. Kicked G-34 Mercenary out of the way. Kicked G-34 Mercenary. Kicked G-34 Mercenary out of the way. K-01 Serf collects debris. Lgt. Nuclear Core destroyed. Aluminum Leg destroyed. K-01 Serf collects debris. K-01 Serf destroyed. Terrain Scanner destroyed. EMP Blaster destroyed. R-06 Scavenger collects Lgt. Ion Engine. EMP Blaster destroyed. Slammed into Y-45 Defender. M-13 Machinist repairs R-06 Scavenger. Slammed into Y-45 Defender. Critical hit (Burn: +37). Slammed into Y-45 Defender. Destabilizing: System corrupted (+1). Slammed into Y-45 Defender. Map ----- +----------------------------------------------------+ | ????????# # " #????????????????????? | | ????????# """"""" # #????????????????????? | | ? ??????# """"""" # #????????????????????? | | ????????# """"""" # [## #?????????????? | | ????????# """"""" # =%=%" T ???????????????? | | ????????# """"""" # ###### #?????????????? | | ????????# # #?????? ??????????????? | | ????????######/#### #????????????????????????? | | ????##+##### ###??????????????????????? | | ????# ###????????????????????? | | ????# +????????????????????? | | ????# #????????????????????? | | ????# #????????????????????? | | ????# #????????????????????? | | ????# # "?????????????????? | | ????# / "?????????????????? | | ????# ##+####### ######????????????????????? | | ????# ?????????# #?????????????????????????? | | ????# ?????????####+#########????????????????????? | | ???? ??????????# Y #????????????????????? | | ??? ???????????# mg ""#????????????????????? | | ??? ????? ?????# T"#????????????????????? | | ???????????????# Y =""#????????????????????? | | ???????????????# g % #????????????????????? | | ???????????"???# Y s##???????????????????? | | ???????????????# """ """@ss #???????????????????? | | ?????? ?? ?????# """""""""s ##???????????????????? | | ???????????????# """"" #????????????????????? | | ???????????????# s #????????????????????? | | ????????????T??# #????????????????????? | | ???????????????# #????????????????????? | | ???????????????##############????????????????????? | | | | | | | | | | | | | | | | | | | | | | | | | | | | | | | | | | | | | +----------------------------------------------------+ Best States ------------- Heat Dissipation 28 Energy Generation 14 Energy Capacity 250 Matter Stores 300 Matter Capacity 300 Sight Range 16 Terrain Scan Range 14 Terrain Scan Density 10 Evasion (%) 55 Item Schematics ----------------- None Robot Schematics ------------------ None Fabricated ------------ Nothing Repaired ---------- Nothing Studied --------- None Alien Tech Used ----------------- None Achievements -------------- None Challenges ------------ None Game ------ Seed WeaponKineticSightfinder Manual? 0 Play Time 00:07:35 Cumulative 33.1 hours Start 2026.06.24 @ 20:33:27 End 2026.06.24 @ 20:39:55 Sessions 1 Manual Loads 0 Difficulty Rogue Special Mode None Game No. 64 Rogue 64 Adventurer 0 Explorer 0 Win Type - Total 0 Types 0/0/0/0/0/0/0/0/0/0 Lore% 30 Gallery% 21 Achievement% 21 Wizard Run 0 Options --------- Layout 1 ASCII 0 Keyboard 1 Movement Arrows Keybinds 0 Fullscreen 0 Font 14/SmallcapsGlow Map View 55x38 Zoom Use 0% Tactical HUD 0 Map Filters NONE Filters NONE Steam 1 RUN: 41372eb2-0b56-435b-b66c-f6d533e32ea7